bitfinex/quotes_SOLUSD_20250207
["timestamp","ask_amount","ask_price","bid_price","bid_amount"]
[1738944289367,37.98002542,196.58,196.54,5.088]
[1738944290026,37.98002542,196.6,196.55,0.25098]
[1738944290248,37.98002542,196.62,196.55,0.25098]
[1738944290557,37.98002542,196.68,196.51,5.0887]
[1738944290558,37.98002542,196.58,196.51,5.0887]
[1738944290935,37.98002542,196.58,196.52,0.25098]
[1738944291530,37.98002542,196.58,196.51,5.0887]
[1738944291850,37.98002542,196.58,196.52,0.25098]
[1738944292052,37.98002542,196.62,196.56,0.25098]
[1738944292558,37.98002542,196.62,196.57,5.0872]
[1738944292924,37.98002542,196.62,196.58,0.25098]
[1738944293649,37.98002542,196.64,196.58,0.25098]
[1738944293854,37.98002542,196.68,196.61,0.25098]
[1738944294038,37.98002542,196.7,196.66,0.25098]
[1738944294363,37.98002542,196.72,196.66,0.25098]
[1738944294539,37.98002542,196.72,196.68,0.25098]
[1738944295329,37.98002542,196.7,196.64,5.0854]
[1738944295928,37.98002542,196.66,196.6,5.0864]
[1738944296131,37.98002542,196.64,196.6,5.0864]
[1738944296342,37.98002542,196.64,196.61,0.25098]
[1738944296556,37.98002542,196.68,196.61,0.25098]
[1738944296766,1.5451,196.76,196.63,0.25098]
[1738944296767,37.98002542,196.7,196.63,0.25098]
[1738944297466,0.03,196.78,196.72,0.25098]
[1738944297467,38.01002542,196.78,196.72,0.25098]
[1738944297677,0.03,196.78,196.74,0.25098]
[1738944297848,0.03,196.78,196.74,0.12549]
[1738944298036,37.98002542,196.75,196.62,17.8007]
[1738944298237,7.06488227,196.78,196.62,5.0859]
[1738944298536,7.06488227,196.78,196.58,12.7171]
[1738944298537,17.8163,196.78,196.64,5.0854]
[1738944298762,5.1118,196.78,196.65,0.25098]
[1738944299145,0.95322177,196.77,196.59,20.0]
[1738944299454,37.98002542,196.66,196.59,12.7161]
[1738944299660,37.98002542,196.68,196.57,5.0872]
[1738944299833,37.98002542,196.68,196.51,25.4439]
[1738944299834,37.98002542,196.59,196.52,5.0885]
[1738944300034,37.98002542,196.55,196.52,5.0885]
[1738944300259,39.63102542,196.68,196.46,5.09]
[1738944300260,37.98002542,196.53,196.46,5.09]
[1738944300453,37.98002542,196.57,196.46,5.09]
[1738944300454,37.98002542,196.51,196.46,5.09]
[1738944300740,37.98002542,196.55,196.47,37.98002542]
[1738944300942,37.98002542,196.57,196.5,0.12549]
[1738944301146,37.98002542,196.59,196.54,20.0]
[1738944301465,37.98002542,196.64,196.55,38.23100542]
[1738944301643,37.98002542,196.64,196.58,0.25098]
[1738944301849,37.98002542,196.6,196.53,0.063]
[1738944302031,37.98002542,196.56,196.53,0.063]
[1738944302237,37.98002542,196.63,196.56,0.25098]
[1738944302756,37.98002542,196.65,196.57,43.06722542]
[1738944302951,37.98002542,196.65,196.59,37.98002542]
[1738944303156,1.9533467,196.76,196.61,37.98002542]
[1738944303157,37.98002542,196.69,196.61,37.98002542]
[1738944303341,37.98002542,196.72,196.64,37.98002542]
[1738944303542,37.98002542,196.67,196.59,37.98002542]
[1738944303766,37.98002542,196.67,196.6,0.25098]
[1738944304273,37.98002542,196.74,196.67,0.25098]
[1738944304575,37.98002542,196.74,196.69,0.25098]
[1738944304748,37.98002542,196.74,196.7,5.0838]
[1738944305147,37.98002542,196.71,196.67,5.0846]
[1738944305345,37.98002542,196.75,196.68,0.25098]
[1738944305859,37.98002542,196.71,196.68,0.25098]
[1738944306044,37.98002542,196.69,196.68,0.25098]
[1738944306239,37.98002542,196.71,196.67,5.0846]
[1738944306460,37.98002542,196.69,196.62,43.06592542]
[1738944306667,37.98002542,196.71,196.66,0.25098]
[1738944306975,0.03,196.78,196.66,0.25098]
[1738944307169,37.98002542,196.71,196.66,0.25098]
[1738944307375,37.98002542,196.71,196.62,19.21187131]
[1738944307376,37.98002542,196.76,196.68,37.98002542]
[1738944307545,38.01002542,196.78,196.71,0.25098]
[1738944307868,37.98002542,196.77,196.71,0.25098]
[1738944308250,37.98002542,196.72,196.62,19.21187131]
[1738944308450,37.98002542,196.7,196.62,19.21187131]
[1738944308771,37.98002542,196.69,196.63,5.0856]
[1738944308960,37.98002542,196.69,196.64,0.25098]
[1738944309159,37.98002542,196.73,196.66,0.25098]
[1738944309980,37.98002542,196.67,196.63,5.0856]
[1738944310278,1.0,196.77,196.63,5.0856]
[1738944310279,37.98002542,196.65,196.63,5.0856]
[1738944310463,37.98002542,196.64,196.55,17.8065]
[1738944310660,37.98002542,196.59,196.53,0.063]
[1738944310856,37.98002542,196.57,196.53,0.063]
[1738944311447,37.98002542,196.55,196.53,0.063]
[1738944312779,37.98002542,196.54,196.53,0.063]
[1738944313179,37.98002542,196.54,196.44,0.063]
[1738944313180,1.0,196.5,196.44,0.063]
[1738944313354,37.98002542,196.45,196.44,0.063]
[1738944314276,37.98002542,196.46,196.44,0.063]
[1738944314651,0.95449132,196.52,196.44,0.063]
[1738944314652,37.98002542,196.48,196.44,0.063]
[1738944315059,5.0886,196.52,196.44,0.063]
[1738944315253,37.98002542,196.46,196.44,0.063]
[1738944315947,37.98002542,196.53,196.45,38.23100542]
[1738944316171,37.98002542,196.55,196.48,0.25098]
[1738944316384,37.98002542,196.56,196.48,37.98002542]
[1738944316757,37.98002542,196.54,196.48,5.0895]
[1738944316951,37.98002542,196.5,196.44,0.063]
[1738944317165,1.0,196.55,196.44,0.063]
[1738944317484,5.0862,196.61,196.46,0.25098]
[1738944317852,2.95388683,196.6,196.45,5.0903]
[1738944318051,5.0862,196.61,196.45,5.0903]
[1738944318272,5.0862,196.61,196.46,0.25098]
[1738944318466,5.0862,196.61,196.46,38.23100542]
[1738944318777,37.98002542,196.53,196.45,5.0903]
[1738944318981,37.98002542,196.53,196.46,38.23100542]
[1738944319188,37.98002542,196.49,196.44,0.063]
[1738944319395,37.98002542,196.49,196.44,5.1535]
[1738944319681,38.93423733,196.57,196.44,5.1535]
[1738944319682,37.98002542,196.51,196.45,0.25098]
[1738944319872,37.98002542,196.49,196.44,5.1535]
[1738944320080,37.98002542,196.47,196.44,0.063]
[1738944320767,37.98002542,196.45,196.44,0.063]
[1738944321459,1.0,196.44,196.41,0.063]
[1738944321662,37.98002542,196.42,196.41,0.063]
[1738944322168,37.98002542,196.42,196.38,0.063]
[1738944322378,37.98002542,196.39,196.38,0.063]
[1738944323863,37.98002542,196.42,196.38,0.063]
[1738944324175,37.98002542,196.43,196.38,0.063]
[1738944324382,37.98002542,196.41,196.38,0.063]
[1738944324585,37.98002542,196.42,196.38,0.063]
[1738944325076,37.98002542,196.43,196.38,0.063]
[1738944325281,37.98002542,196.47,196.4,38.23100542]
[1738944325585,37.98002542,196.41,196.38,0.063]
[1738944325958,37.98002542,196.39,196.38,0.063]
[1738944326689,37.98002542,196.4,196.38,0.063]
[1738944326859,37.98002542,196.42,196.38,0.063]
[1738944327064,37.98002542,196.4,196.38,0.063]
[1738944327262,37.98002542,196.39,196.38,0.063]
[1738944328377,37.98002542,196.4,196.38,0.063]
[1738944328561,37.98002542,196.39,196.38,0.063]
[1738944329085,44.07192542,196.39,196.38,0.063]
[1738944329385,1.0,196.38,196.23,5.096]
[1738944329567,37.98002542,196.32,196.24,38.10551542]
[1738944329769,37.98002542,196.3,196.24,0.12549]
[1738944329974,37.98002542,196.29,196.23,5.096]
[1738944330183,37.98002542,196.27,196.23,5.096]
[1738944330376,37.98002542,196.27,196.19,5.097]
[1738944330576,37.98002542,196.29,196.22,0.25098]
[1738944330777,37.98002542,196.31,196.23,37.98002542]
[1738944330989,17.8216,196.39,196.23,5.096]
[1738944330990,37.98002542,196.28,196.23,5.096]
[1738944331689,37.98002542,196.28,196.21,0.25098]
[1738944331690,37.98002542,196.25,196.21,5.0963]
[1738944331891,37.98002542,196.23,196.18,5.0973]
[1738944332098,37.98002542,196.22,196.18,5.0973]
[1738944332273,17.8264,196.34,196.22,0.25098]
[1738944332274,37.98002542,196.28,196.22,0.25098]
[1738944332668,37.98002542,196.29,196.22,38.23100542]
[1738944332868,37.98002542,196.25,196.18,50.72332542]
[1738944333084,5.0939,196.32,196.19,37.98002542]
[1738944333278,37.98002542,196.27,196.2,38.23100542]
[1738944333480,37.98002542,196.26,196.2,0.25098]
[1738944333763,37.98002542,196.26,196.18,50.72332542]
[1738944333972,37.98002542,196.26,196.19,37.98002542]
[1738944334166,37.98002542,196.26,196.2,0.25098]
[1738944334382,37.98002542,196.28,196.21,38.23100542]
[1738944334590,37.98002542,196.29,196.23,0.25098]
[1738944334800,37.98002542,196.35,196.22,5.0963]
[1738944334801,37.98002542,196.26,196.22,5.0963]
[1738944334996,37.98002542,196.23,196.16,5.0978]
[1738944335291,0.95549616,196.32,196.17,0.25098]
[1738944335485,18.78179616,196.34,196.19,20.0]
[1738944335690,5.0933,196.34,196.2,0.25098]
[1738944335871,0.95529905,196.33,196.16,17.8424]
[1738944336080,2.6383,196.3,196.16,5.0978]
[1738944336276,8.3421,196.29,196.16,5.0978]
[1738944336584,37.98002542,196.2,196.13,43.07862542]
[1738944336958,37.98002542,196.2,196.14,0.25098]
[1738944337190,37.98002542,196.27,196.2,0.25098]
[1738944337491,37.98002542,196.27,196.2,37.98002542]
[1738944337696,37.98002542,196.28,196.21,38.23100542]
[1738944337993,37.98002542,196.26,196.18,37.98002542]
[1738944338295,37.98002542,196.26,196.18,38.23100542]
[1738944338668,37.98002542,196.26,196.19,43.07702542]
[1738944338863,37.98002542,196.26,196.2,0.25098]
[1738944339059,37.98002542,196.29,196.23,0.25098]
[1738944339263,44.32212542,196.35,196.21,37.98002542]
[1738944339264,37.98002542,196.28,196.21,37.98002542]
[1738944340196,44.32212542,196.35,196.2,37.98002542]
[1738944340197,50.37018304,196.35,196.2,37.98002542]
[1738944340973,50.37018304,196.35,196.2,38.01002542]
[1738944341278,37.98002542,196.29,196.22,38.23100542]
[1738944341586,11.435,196.35,196.22,0.25098]
[1738944341785,37.98002542,196.26,196.21,0.25098]
[1738944342295,37.98002542,196.28,196.21,38.23100542]
[1738944342595,37.98002542,196.26,196.22,5.0963]
[1738944342783,37.98002542,196.25,196.22,5.0963]
[1738944342987,37.98002542,196.25,196.2,0.03]
[1738944342988,37.98002542,196.23,196.2,5.1266]
[1738944343199,37.98002542,196.24,196.2,5.1266]
[1738944343395,5.0932,196.34,196.21,0.25098]
[1738944343608,49.41502542,196.35,196.21,0.25098]
[1738944343780,11.435,196.35,196.21,0.25098]
[1738944344489,37.98002542,196.28,196.22,17.8365]
[1738944344891,37.98002542,196.31,196.24,37.98002542]
[1738944345200,37.98002542,196.35,196.23,6.2277]
[1738944345500,0.063,196.38,196.3,0.25098]
[1738944345793,0.063,196.38,196.23,7.8653]
[1738944345993,0.063,196.38,196.24,0.25098]
[1738944346413,0.063,196.38,196.23,7.8653]
[1738944346414,37.98002542,196.3,196.23,44.20772542]
[1738944346572,37.98002542,196.26,196.2,0.03]
[1738944346772,37.98002542,196.26,196.21,5.0965]
[1738944346992,38.93526853,196.35,196.21,5.0965]
[1738944347179,39.93526853,196.35,196.21,5.0965]
[1738944347506,1.0,196.28,196.2,0.03]
[1738944347712,0.95571428,196.27,196.2,0.03]
[1738944347886,20.95571428,196.27,196.2,0.03]
[1738944348522,37.98002542,196.21,196.2,0.03]
[1738944348810,6.4862,196.3,196.2,0.03]
[1738944348811,37.98002542,196.24,196.2,0.03]
[1738944349008,37.98002542,196.21,196.2,0.03]
[1738944353812,37.98002542,196.23,196.2,0.03]
[1738944354120,37.98002542,196.23,196.16,37.98002542]
[1738944354716,37.98002542,196.21,196.14,37.98002542]
[1738944355023,37.98002542,196.21,196.14,0.12549]
[1738944355195,37.98002542,196.21,196.13,5.22409]
[1738944355406,37.98002542,196.19,196.13,5.22409]
[1738944355903,37.98002542,196.23,196.15,0.12549]
[1738944356107,37.98002542,196.23,196.16,37.98002542]
[1738944356439,37.98002542,196.23,196.14,37.98002542]
[1738944356596,37.98002542,196.21,196.13,43.07862542]
[1738944356916,37.98002542,196.19,196.13,5.0986]
[1738944357417,37.98002542,196.21,196.13,43.07862542]
[1738944357588,37.98002542,196.25,196.17,37.98002542]
[1738944357793,37.98002542,196.21,196.13,55.82522542]
[1738944358214,37.98002542,196.21,196.13,43.07862542]
[1738944359102,37.98002542,196.19,196.13,5.0986]
[1738944359314,37.98002542,196.19,196.11,37.98002542]
[1738944359509,37.98002542,196.17,196.09,37.98002542]
[1738944359811,37.98002542,196.19,196.11,37.98002542]
[1738944360402,37.98002542,196.15,196.07,55.83072542]
[1738944360608,37.98002542,196.19,196.11,37.98002542]
[1738944360803,37.98002542,196.19,196.13,37.98002542]
[1738944361007,37.98002542,196.21,196.13,37.98002542]
[1738944361217,37.98002542,196.19,196.11,37.98002542]
[1738944361722,37.98002542,196.21,196.14,0.25098]
[1738944361906,37.98002542,196.21,196.13,37.98002542]
[1738944362104,37.98002542,196.21,196.14,0.25098]
[1738944362295,37.98002542,196.26,196.18,37.98002542]
[1738944362499,37.98002542,196.24,196.17,5.0976]
[1738944363114,37.98002542,196.24,196.18,38.23100542]
[1738944363311,1.5239,196.31,196.23,20.0]
[1738944363514,37.98002542,196.37,196.29,37.98002542]
[1738944363718,0.063,196.38,196.31,37.98002542]
[1738944364241,37.98002542,196.36,196.29,37.98002542]
[1738944364415,38.04302542,196.38,196.29,37.98002542]
[1738944364621,38.04302542,196.38,196.31,38.23100542]
[1738944364930,0.063,196.38,196.32,37.98002542]
[1738944365118,0.063,196.38,196.31,0.25098]
[1738944365316,0.063,196.38,196.3,55.80982542]
[1738944365523,38.04302542,196.38,196.32,37.98002542]
[1738944365724,0.063,196.38,196.31,37.98002542]
[1738944366109,37.98002542,196.37,196.3,5.0942]
[1738944366531,37.98002542,196.31,196.23,37.98002542]
[1738944366717,37.98002542,196.37,196.29,37.98002542]
[1738944366921,0.063,196.38,196.23,17.8361]
[1738944367322,0.063,196.38,196.23,5.096]
[1738944367323,7.11007701,196.38,196.23,5.096]
[1738944367540,19.84047701,196.38,196.23,5.096]
[1738944368035,37.98002542,196.3,196.23,5.096]
[1738944368213,37.98002542,196.26,196.2,5.0968]
[1738944369113,37.98002542,196.24,196.2,5.0968]
[1738944369635,37.98002542,196.27,196.2,5.0968]
[1738944370036,37.98002542,196.29,196.21,38.10551542]
[1738944370318,37.98002542,196.26,196.2,5.0968]
[1738944370527,37.98002542,196.27,196.21,0.12549]
[1738944370745,37.98002542,196.33,196.25,38.10551542]
[1738944371037,1.01826838,196.38,196.24,0.12549]
[1738944371038,5.1551,196.38,196.24,0.12549]
[1738944371209,1.0,196.36,196.2,43.07682542]
[1738944371413,19.84075478,196.38,196.2,5.0968]
[1738944371627,19.84075478,196.38,196.23,0.12549]
[1738944371839,37.98002542,196.29,196.23,0.12549]
[1738944372016,37.98002542,196.26,196.2,5.0968]
[1738944372410,37.98002542,196.26,196.18,37.98002542]
[1738944372411,37.98002542,196.24,196.18,5.0971]
[1738944372721,37.98002542,196.27,196.19,38.10551542]
[1738944372925,0.95541946,196.34,196.18,5.0971]
[1738944372926,37.98002542,196.29,196.21,37.98002542]
[1738944373115,37.98002542,196.29,196.23,0.12549]
[1738944373538,37.98002542,196.3,196.22,37.98002542]
[1738944373838,0.063,196.38,196.26,0.25098]
[1738944374041,0.063,196.38,196.3,37.98002542]
[1738944374042,37.98002542,196.37,196.3,37.98002542]
[1738944374216,0.063,196.38,196.31,37.98002542]
[1738944374411,0.063,196.38,196.32,37.98002542]
[1738944374614,0.063,196.38,196.35,37.98002542]
[1738944374815,0.063,196.38,196.37,38.23100542]
[1738944375123,45.72329884,196.51,196.4,20.0]
[1738944375324,7.74327342,196.51,196.47,37.98002542]
[1738944375521,7.74327342,196.51,196.48,37.98002542]
[1738944375720,7.74327342,196.51,196.49,37.98002542]
[1738944375920,7.74327342,196.51,196.5,0.12549]
[1738944376141,7.74327342,196.51,196.5,38.23100542]
[1738944376746,2.77380323,196.51,196.5,43.32000542]
[1738944376937,0.063,196.58,196.43,1.24300081]
[1738944377138,0.063,196.58,196.34,1.0]
[1738944377139,1.0,196.56,196.34,6.37782314]
[1738944377320,0.95431966,196.55,196.35,1.0]
[1738944377652,0.95426367,196.56,196.38,0.25098]
[1738944377850,11.338,196.57,196.38,1.25098]
[1738944378058,37.98002542,196.53,196.46,0.25098]
[1738944378356,45.18458893,196.57,196.5,7.78659519]
[1738944378531,6.2506,196.57,196.5,7.78659519]
[1738944378862,6.2506,196.57,196.47,0.25098]
[1738944378863,37.98002542,196.54,196.47,0.25098]
[1738944379164,0.063,196.58,196.53,37.98002542]
[1738944379329,0.063,196.58,196.54,0.12549]
[1738944379533,0.063,196.58,196.55,37.98002542]
[1738944379840,38.04302542,196.58,196.51,37.98002542]
[1738944380057,0.063,196.58,196.53,37.98002542]
[1738944380252,0.063,196.61,196.54,0.12549]
[1738944380630,0.063,196.61,196.6,0.12549]
[1738944381260,0.063,196.61,196.59,37.98002542]
[1738944381431,0.063,196.61,196.57,5.0872]
[1738944381630,0.063,196.61,196.58,0.12549]
[1738944381954,0.03,196.65,196.58,37.98002542]
[1738944382123,37.98002542,196.62,196.57,7.78659519]
[1738944382326,0.03,196.65,196.59,0.25098]
[1738944382556,0.03,196.65,196.62,37.98002542]
[1738944382752,0.03,196.65,196.63,5.0856]
[1738944383343,0.03,196.65,196.64,38.23100542]
[1738944383562,12.701,196.84,196.72,37.98002542]
[1738944383563,0.03,196.78,196.72,37.98002542]
[1738944383737,0.03,196.78,196.73,37.98002542]
[1738944383928,0.03,196.78,196.76,37.98002542]
[1738944384151,0.03,196.78,196.77,37.98002542]
[1738944384655,5.1093,196.88,196.75,37.98002542]
[1738944384656,37.98002542,196.83,196.75,37.98002542]
[1738944384825,37.98002542,196.78,196.72,7.78659519]
[1738944385024,37.98002542,196.75,196.72,7.78659519]
[1738944385349,37.98002542,196.73,196.72,7.78659519]
[1738944385557,37.98002542,196.73,196.72,15.57319039]
[1738944386433,37.98002542,196.74,196.72,15.57319039]
[1738944386635,37.98002542,196.73,196.72,15.57319039]
[1738944387151,37.98002542,196.73,196.65,7.7748539]
[1738944387357,37.98002542,196.68,196.65,7.7748539]
[1738944387558,37.98002542,196.66,196.65,7.7748539]
[1738944388335,38.93364979,196.66,196.62,15.57319039]
[1738944388656,43.06562542,196.63,196.62,15.57319039]
[1738944388857,37.98002542,196.63,196.62,15.57319039]
[1738944389232,37.98002542,196.65,196.62,15.57319039]
[1738944389533,37.98002542,196.65,196.6,31.19159023]
[1738944389534,37.98002542,196.65,196.6,5.0864]
[1738944389734,37.98002542,196.67,196.6,5.0864]
[1738944390164,37.98002542,196.69,196.61,37.98002542]
[1738944390363,0.95335731,196.77,196.65,37.98002542]
[1738944390364,37.98002542,196.73,196.65,37.98002542]
[1738944390667,37.98002542,196.71,196.63,37.98002542]
[1738944390862,37.98002542,196.69,196.63,43.06562542]
[1738944391036,37.98002542,196.67,196.59,37.98002542]
[1738944392153,37.98002542,196.62,196.54,37.98002542]
[1738944392341,37.98002542,196.62,196.52,5.0885]
[1738944392342,0.063,196.63,196.57,0.12549]
[1738944392662,0.063,196.63,196.59,37.98002542]
[1738944392836,0.063,196.63,196.58,5.0868]
[1738944393538,0.063,196.63,196.59,37.98002542]
[1738944393962,0.063,196.63,196.61,57.98002542]
[1738944394157,37.98002542,196.75,196.62,0.25098]
[1738944394468,37.98002542,196.71,196.63,37.98002542]
[1738944394638,37.98002542,196.69,196.61,43.06592542]
[1738944394961,37.98002542,196.67,196.61,5.0859]
[1738944395148,37.98002542,196.65,196.59,5.0864]
[1738944395472,37.98002542,196.61,196.55,43.06752542]
[1738944395648,37.98002542,196.61,196.55,5.0875]
[1738944396063,37.98002542,196.61,196.46,37.98002542]
[1738944396064,37.98002542,196.56,196.48,37.98002542]
[1738944396261,37.98002542,196.54,196.46,43.07002542]
[1738944396440,37.98002542,196.52,196.46,5.09]
[1738944396956,37.98002542,196.54,196.46,43.07002542]
[1738944397275,37.98002542,196.54,196.46,5.09]
[1738944397761,37.98002542,196.5,196.44,5.0903]
[1738944398140,37.98002542,196.57,196.45,37.98002542]
[1738944398141,37.98002542,196.52,196.45,37.98002542]
[1738944398561,37.98002542,196.5,196.41,43.07402542]
[1738944398875,37.98002542,196.54,196.47,37.98002542]
[1738944399045,0.95430519,196.6,196.44,0.25098]
[1738944399046,37.98002542,196.56,196.49,37.98002542]
[1738944399243,37.98002542,196.58,196.49,37.98002542]
[1738944399458,37.98002542,196.6,196.51,37.98002542]
[1738944399660,37.98002542,196.64,196.57,37.98002542]
[1738944399846,0.95375623,196.68,196.53,0.12549]
[1738944399847,37.98002542,196.68,196.59,37.98002542]
[1738944400154,1.0,196.77,196.54,0.12549]
[1738944400155,37.98002542,196.78,196.62,0.25098]
[1738944400468,37.98002542,196.78,196.69,37.98002542]
[1738944400767,37.98002542,196.78,196.71,37.98002542]
[1738944400949,37.98002542,196.82,196.73,37.98002542]
[1738944401367,37.98002542,196.82,196.75,37.98002542]
[1738944401536,0.03,196.88,196.79,37.98002542]
[1738944401537,37.98002542,196.86,196.79,37.98002542]
[1738944401740,43.08932542,196.88,196.79,37.98002542]
[1738944402062,38.01002542,196.88,196.79,37.98002542]
[1738944402245,37.98002542,196.84,196.77,37.98002542]
[1738944402454,37.98002542,196.8,196.72,37.98002542]
[1738944402766,6.06192837,196.88,196.72,37.98002542]
[1738944402767,37.98002542,196.78,196.72,37.98002542]
[1738944402947,37.98002542,196.76,196.68,37.98002542]
[1738944403273,37.98002542,196.78,196.7,37.98002542]
[1738944403771,37.98002542,196.76,196.68,37.98002542]
[1738944404071,37.98002542,196.82,196.74,37.98002542]
[1738944404366,5.0791,196.89,196.8,37.98002542]
[1738944404535,37.98002542,196.9,196.83,37.98002542]
[1738944404740,43.05882542,196.9,196.83,37.98002542]
[1738944404937,37.98002542,196.84,196.77,37.98002542]
[1738944405150,43.05882542,196.9,196.67,1.0]
[1738944405151,0.95266966,196.83,196.67,5.86]
[1738944405349,37.98002542,196.77,196.69,37.98002542]
[1738944405550,37.98002542,196.75,196.67,37.98002542]
[1738944406374,37.98002542,196.75,196.69,37.98002542]
[1738944406667,37.98002542,196.8,196.73,37.98002542]
[1738944406970,37.98002542,196.76,196.68,37.98002542]
[1738944407141,37.98002542,196.74,196.65,37.98002542]
[1738944407342,37.98002542,196.79,196.64,37.98002542]
[1738944407343,37.98002542,196.72,196.64,37.98002542]
[1738944407542,37.98002542,196.74,196.66,37.98002542]
[1738944407760,37.98002542,196.74,196.6,0.25098]
[1738944407761,37.98002542,196.74,196.68,37.98002542]
[1738944407938,37.98002542,196.76,196.67,37.98002542]
[1738944408139,37.98002542,196.74,196.65,37.98002542]
[1738944408345,37.98002542,196.71,196.63,37.98002542]
[1738944408579,37.98002542,196.67,196.59,37.98002542]
[1738944408940,5.0838,196.7,196.56,5.0875]
[1738944408941,37.98002542,196.64,196.56,37.98002542]
[1738944409370,37.98002542,196.68,196.6,37.98002542]
[1738944409541,43.06382542,196.7,196.62,37.98002542]
[1738944410063,37.98002542,196.72,196.58,0.25098]
[1738944410250,37.98002542,196.74,196.67,37.98002542]
[1738944410445,37.98002542,196.73,196.66,37.98002542]
[1738944410765,37.98002542,196.75,196.68,37.98002542]
[1738944410957,37.98002542,196.73,196.67,37.98002542]
[1738944411269,37.98002542,196.74,196.66,37.98002542]
[1738944411566,37.98002542,196.76,196.68,37.98002542]
[1738944411866,13.218321,196.77,196.65,37.98002542]
[1738944412065,37.98002542,196.73,196.65,37.98002542]
[1738944412659,37.98002542,196.72,196.65,37.98002542]
[1738944412846,37.98002542,196.7,196.63,37.98002542]
[1738944413044,37.98002542,196.7,196.61,37.98002542]
[1738944413245,37.98002542,196.66,196.59,37.98002542]
[1738944413475,37.98002542,196.69,196.6,37.98002542]
[1738944413645,37.98002542,196.71,196.64,37.98002542]
[1738944413845,37.98002542,196.73,196.66,37.98002542]
[1738944414678,37.98002542,196.72,196.65,37.98002542]
[1738944415042,37.98002542,196.76,196.68,37.98002542]
[1738944415366,7.6912,196.77,196.71,37.98002542]
[1738944415569,11.4311,196.84,196.75,37.98002542]
[1738944415570,0.063,196.76,196.75,37.98002542]
[1738944416140,0.063,196.76,196.75,38.10551542]
[1738944416555,0.063,196.76,196.75,37.98002542]
[1738944416869,37.98002542,196.86,196.75,43.31350542]
[1738944417160,0.03,196.88,196.81,37.98002542]
[1738944417367,37.98002542,196.86,196.79,37.98002542]
[1738944417547,0.03,196.88,196.75,5.0825]
[1738944417548,37.98002542,196.83,196.75,5.0825]
[1738944417739,37.98002542,196.82,196.75,5.0825]
[1738944417946,37.98002542,196.82,196.75,43.06252542]
[1738944418270,37.98002542,196.84,196.77,37.98002542]
[1738944418458,4.6013,196.88,196.75,5.0825]
[1738944418459,38.01002542,196.88,196.8,37.98002542]
[1738944418646,0.03,196.88,196.81,43.06082542]
[1738944418843,0.03,196.88,196.83,37.98002542]
[1738944419247,0.03,196.88,196.82,37.98002542]
[1738944419653,0.03,196.88,196.84,37.98002542]
[1738944419974,0.03,196.88,196.87,37.98002542]
[1738944420346,0.03,196.88,196.87,38.10551542]
[1738944420567,0.03,196.88,196.87,37.98002542]
[1738944420746,0.03,196.88,196.87,43.05942542]
[1738944421068,0.03,196.88,196.85,37.98002542]
[1738944421373,0.03,196.88,196.83,37.98002542]
[1738944421772,0.03,196.88,196.82,37.98002542]
[1738944421972,0.03,196.88,196.87,38.23100542]
[1738944422348,0.063,196.93,196.92,37.98002542]
[1738944422548,0.063,196.93,196.92,38.10551542]
[1738944422778,0.03,196.98,196.96,5.0771]
[1738944423161,0.0001,196.98,196.96,5.0771]
[1738944423470,0.03,197.05,197.0,0.25098]
[1738944423859,0.0001,197.05,197.04,38.23100542]
[1738944424552,0.0001,197.05,197.04,39.23100542]
[1738944424747,0.0001,197.08,197.07,20.12549]
[1738944425059,0.0001,197.08,197.07,58.10551542]
[1738944425259,0.0001,197.08,197.07,57.98002542]
[1738944425469,0.0001,197.08,197.07,58.23100542]
[1738944426058,0.0001,197.08,197.07,58.10551542]
[1738944426264,0.0001,197.08,197.07,25.93855108]
[1738944426487,0.0001,197.08,197.07,26.18953108]
[1738944426663,0.03,197.17,197.08,0.25098]
[1738944427047,0.03,197.17,197.08,0.12549]
[1738944427252,0.03,197.17,197.09,0.12549]
[1738944427473,0.03,197.17,197.13,38.10551542]
[1738944427777,37.98002542,197.2,197.13,37.98002542]
[1738944427946,37.98002542,197.18,197.1,37.98002542]
[1738944428148,37.98002542,197.17,197.1,37.98002542]
[1738944428376,37.98002542,197.19,197.12,37.98002542]
[1738944428551,37.98002542,197.15,197.08,37.98002542]
[1738944428757,0.063,197.08,197.02,5.0756]
[1738944428953,37.98002542,197.23,197.08,0.25098]
[1738944429171,10.6325,197.24,197.17,37.98002542]